{"text_format":"1","workbook":"xlsx","n_sheets":5,"sheets":["Övergripande information","Enhet  ","Läkare","Förklaringar för enhetsdel","Förklaringar för läkardel"],"not_rendered":{"charts":0,"images":1,"macros":1,"external_links":0,"defined_names":14,"comments":0,"pivot_tables":0},"unopened":[],"bounds":{"document_bytes":16777216,"sheet_cells":100000,"rows_first":2000,"rows_last":500,"rows_between":2000,"halvings":0,"cell_chars":16384,"cell_head_chars":4096},"cells_cut":0,"cells_raw":0,"read":"whole","date_system":"1900"}

{"sheet":"Övergripande information","index":0,"n_rows":10,"n_cols":1,"rows_kept":10,"cut":false,"hidden":false,"merged":[]}
[]
[]
["Verktygets huvudsakliga syfte"]
["Det primära syftet med planeringsverktyget är att stödja verksamhetschefer i analys och planering för fast läkarkontakt. I verktyget går det bland annat att göra kartläggning av vårdenhetens läkarresurser samt patienternas vårdbehov och vårdkonsumtion. \n\nVerktyget går också att använda som underlag för dialog mellan verksamhetschef och läkare. Läkarens förutsättningar att upprätthålla kontinuitet i sin roll som fast läkarkontakt och en lämplig fördelning av patientansvar kan med fördel analyseras tillsammans.\n\nPlaneringsverktyget kan även användas av regioner i sam-band med kvalitetsuppföljning av primärvården.\n"]
["Planeringsverktygets enhetsdel och läkardel "]
["Planeringsverktyget består av en enhetsdel och en läkardel. \n\nI enhetsdelen förs data in som relaterar till läkarnas arbete på enheten som helhet, t.ex. totalt antal patienter, tidsåtgång för kontakter på enheten eller tidsåtgång för direkta patientkontakter. Data som rör annan personal än läkarna läggs inte in i verktyget. \n\nI läkardelen förs läkarens individuella data in. Det synliggör varje enskild läkares förutsättningar att vara fast läkarkontakt, exempelvis tjänstgöringsgrad, veckobaserade aktiviteter eller indirekta patientaktiviteter. \n\nFör att få en utgångspunkt i kartläggningen kan data från föregående år läggas in.\n"]
["Resultat av beräkningar"]
["De resultat som visas i planeringsverktyget är helt baserade på de egna inmatade uppgifterna om produktion och tid. Socialstyrelsen har inte lagt till någon värdering i form av riktvärde eller kontinuitets-index som påverkar beräkningarna och resultatet. Resultatet i planeringsverktyget visas i form av två olika beräkningar:\n\n1) Resultatet ”Antal invånare läkaren kan ha kontinuerligt patientansvar för” räknas ut genom att justera upp eller ner det redovisade antalet patientkontakter (fält 3 och 4) så att det matchar den inmatade informationen om aktiviteter på veckobasis (fält 5–7), samtidigt som relationen mellan direkt och indirekt patientarbete bibehålls. \n\n2) Resultatet för ”Ändring i %” räknas ut genom att ”Antal invånare läkaren kan ha kontinuerligt patientansvar för” divideras med ”antalet invånare”. Det är därmed den procentuella skillnaden i det antal patienter läkaren har ansvar för i dagsläget och det beräknade antalet, så som definierat i punkten ovan.\n\nFör att få fördjupad information om beräkningarna bakom resultatet går det att klicka i knappen ”visa beräkningar” som är placerad längst upp till höger i respektive flik.\n\nI denna version påverkas inte resultatet i procent om endast antalet invånare ändras. Ändring i procent ändras vid justering av övriga variabler som exempelvis antal besök, tidsåtgång för besök eller tidsåtgång för veckobaserade aktiviteter.\n"]
["Så kan resultatet från planeringsverktyget och följas upp"]
["Resultatet som visas i planeringsverktyget ger en indikation på hur många patienter som enheten och den enskilda läkaren kan erbjuda fast läkarkontakt. Resultatet bör användas som underlag för reflektion, analys och dialog kring arbetssättet för fast läkarkontakt och inte ses som en absolut sanning.\n\nVerksamhetschefen och läkaren kan reflektera tillsammans över resultatet för att öka förståelsen för vad fast läkarkontakt innebär för läkarens arbete. Det kan också vara bra att reflektera över vilka åtgärder som kan behöva vidtas för att fördelningen av patientansvar ska bli lämplig samtidigt som en god arbetsmiljöupprätthålls.\n\nResultatet från verktyget behöver analyseras vidare tillsammans med andra uppgifter som t.ex. vilka patienter som kan ha störst behov en fast läkarkontakt eller vilka kontaktvägar och möjligheter som patienterna har idag för att komma i kontakt med läkare.\n\nResultatet från verktyget kan följas upp av verksamhetschefen under året. Dels för att planera och följa enhetens arbete med fast läkarkontakt, dels för att kunna skapa förutsättningarna för den enskilde läkaren att tillgodose behovet av en fast läkarkontakt hos de patienter som bäst behöver det, men även åt de patienter som i övrigt önskar ha en fast läkarkontakt.\n"]

{"sheet":"Enhet  ","index":1,"n_rows":45,"n_cols":23,"rows_kept":45,"cut":false,"hidden":false,"merged":[]}
[]
[null,null,null,null,null,null,null,null,null,null,null,null,null,null,null,"Beräkningar till grund för resultat"]
[null,"Planeringsverktyg enhet "]
[null,null,null,null,null,null,null,null,null,null,null,null,null,null,null,"Arbetstid standard",null,null,"Veckoarbetstid",null,"Antal veckor per år"]
[null,null,null,null,null,null,null,null,null,null,null,null,null,null,null,"Standard en heltidstjänst",null,null,40,null,45]
[]
[null,null,null,null,null,null,null,null,null,null,null,null,null,null,null,null,null,null,null,null,null,"Kontakter","Pat.konakt"]
[null,"1. Antal invånare listade på enheten",null,null,null,null,null,null,"6. Veckobaserad samverkan",null,null,null,"Antal timmar",null,null,"Tidsåtgång direkta patientkontakter (antalet besök per år multiplicerat med tiden per besök, fält 3 samt fält 4)",null,null,null,"Antal timmar","Andel","per listad","per vecka"]
[null,"Antalet invånare",null,null,null,1000,null,null,"Intern konsultation och samverkan",null,null,null,0,null,null,"Planerade besök, vårdcentral",null,null,null,{"$f":"F16*G25","v":0},{"$f":"IF($T$15>0,T9/$T$15,0)","v":0},{"$f":"IF($F$9>0,$F$16/$F$9,0)","v":0},{"$f":"IF(G25>0,U9*$M$29/G25,0)","v":0}]
[null,null,null,null,null,null,null,null,"Extern konsultation och samverkan",null,null,null,0,null,null,"Planerade hembesök",null,null,null,0,0,{"$f":"IF($F$9>0,$F$17/$F$9,0)","v":0},0]
[null,"2. Produktiv tid",null,null,null,null,null,null,"Samverkan kommun",null,null,null,0,null,null,"Akuta besök, vårdcentral",null,null,null,0,0,{"$f":"IF($F$9>0,$F$18/$F$9,0)","v":0},0]
[null,"Tjänstgöringsgrad ",null,null,null,0,null,null,"Övrigt",null,null,null,0,null,null,"Akuta hembesök",null,null,null,0,0,{"$f":"IF($F$9>0,$F$19/$F$9,0)","v":0},0]
[null,"Veckoarbetstid justerad",null,null,null,{"$f":"(F12*S5)","v":0},null,null,"Summa",null,null,null,{"$f":"SUM(M9:M12)","v":0},null,null,"Telefonärenden",null,null,null,0,0,{"$f":"IF($F$9>0,$F$20/$F$9,0)","v":0},0]
[null,null,null,null,null,null,null,null,null,null,null,null,null,null,null,"Digitala vårdmöten",null,null,null,0,0,{"$f":"IF($F$9>0,$F$21/$F$9,0)","v":0},0]
[null,"3. Patientkontakter, totalt för enheten per år:",null,null,null,"Antal",null,null,"7. Veckobaserade aktiviteter",null,null,null,"Antal timmar",null,null,"Summa",null,null,null,{"$f":"SUM(T9:T14)","v":0},{"$f":"SUM(U9:U14)","v":0},{"$f":"SUM(V9:V14)","v":0},{"$f":"SUM(W9:W14)","v":0}]
[null,"Planerade besök, vårdcentral",null,null,null,0,null,null,"Rast",null,null,null,0,null,null,"Förhållande mellan tid för indirekt och direkt pat.kontakt",null,null,null,{"$f":"M30*U5","v":0},{"$f":"IF((T15+T16)=0,0,T16/(T15+T16))","v":0}]
[null,"Planerade hembesök",null,null,null,0,null,null,"Möte (kring arbetsplatsen)",null,null,null,0]
[null,"Akuta besök, vårdcentral",null,null,null,0,null,null,"Handledning",null,null,null,0,null,null,"Tidsåtgång direkta patientkontakter, baserat på tillgänglig tid,",null,null,null,null,null,"Motsvarande","Motsvarande"]
[null,"Akuta hembesök",null,null,null,0,null,null,"Sidouppdrag",null,null,null,0,null,null,"justerat för behovet av ökad tid för indirekt patientarbete (uppskattad tidsåtgång baserat på data i fält 1-7)",null,null,null,"Antal timmar","Justerat tid*","kontakter","listade"]
[null,"Telefonärenden",null,null,null,0,null,null,"Professionell utveckling och fortbildning",null,null,null,0,null,null,{"$f":"B16","v":"Planerade besök, vårdcentral"},null,null,null,{"$f":"U9*$T$31","v":0},{"$f":"T20-U9*($T$27-T$16)","v":0},{"$f":"IF(G25>0,U20/G25,0)","v":0}]
[null,"Digitala vårdmöten",null,null,null,0,null,null,"Forskning och enhetens utvecklingsarbete",null,null,null,0,null,null,"Planerade hembesök",null,null,null,0,0,0]
[null,"Summa",null,null,null,{"$f":"SUM(F16:F21)","v":0},null,null,"Övrigt",null,null,null,0,null,null,"Akuta besök, vårdcentral",null,null,null,0,0,0,"         "]
[null,null,null,null,null,null,null,null,"Summa",null,null,null,{"$f":"SUM(M16:M22)","v":0},null,null,"Akuta hembesök",null,null,null,0,0,0]
[null,"4. Tidsåtgång direkta patientkontakter",null,null,null,"[tim:min]",null,null,null,null,null,null,null,null,null,"Telefonärenden",null,null,null,0,0,0]
[null,"Planerade besök, vårdcentral",null,null,null,0,{"$f":"IF( F25>TIME(24,0,0),TEXT(F25,\"[t]:mm:ss\")*24,0)","v":0},null,null,null,null,null,null,null,null,"Digitala vårdmöten",null,null,null,0,0,0]
[null,"Planerade hembesök",null,null,null,0,0,null,"Resultat",null,null,null,null,null,null,"Summa",null,null,null,{"$f":"SUM(T20:T25)","v":0},{"$f":"SUM(U20:U25)","v":0},{"$f":"SUM(V20:V25)","v":0},{"$f":"IF(V15>0,V26/V15,0)","v":0}]
[null,"Akuta besök, vårdcentral",null,null,null,0,0,null,null,null,null,null,null,null,null,"Hur mycket mer tid behövs för indirekt arbete?",null,null,null,{"$f":"(T31+T32)*U16","v":0}]
[null,"Akuta hembesök",null,null,null,0,0,null,"8. Summering enhetens tid per vecka",null,null,null,"Antal timmar",null,null,"* Tid [antal timmar] justerad för det extra indirekta patientarbete fler patienter kräver"]
[null,"Telefonärenden",null,null,null,0,0,null,"Tid per vecka för direkta patientkontakter",null,null,null,{"$f":"F13-(M30+M31+M32)","v":0}]
[null,"Digitala vårdmöten",null,null,null,0,0,null,"Veckobaserat indirekt patientarbete",null,null,null,{"$f":"F33","v":0},null,null,"Summering av läkarens tid för aktiviteter år",null,null,null,"Antal timmar","Justerat tid","Andel","Ny tid *"]
[null,null,null,null,null,null,null,null,"Veckobaserad samverkan",null,null,null,{"$f":"M13","v":0},null,null,"Tid per år för direkta patientkontakter",null,null,null,{"$f":"M29*U$5","v":0},{"$f":"U26","v":0},{"$f":"IF($U$35>0,U31/$U$35,0)","v":0},{"$f":"U31/U5","v":0}]
[null,"5. Veckobaserat indirekt patientarbete",null,null,null,"Antal timmar",null,null,"Veckobaserade aktiviteter",null,null,null,{"$f":"M23","v":0},null,null,"Tid per år för indirekta patientarbete",null,null,null,{"$f":"M30*U$5","v":0},{"$f":"T27","v":0},{"$f":"IF($U$35>0,U32/$U$35,0)","v":0},{"$f":"U32/U5","v":0}]
[null,"Indirekt patientarbete ",null,null,null,0,null,null,"Summa",null,null,null,{"$f":"SUM(M29:M32)","v":0},null,null,"Tid per år för samverkan",null,null,null,{"$f":"M31*U$5","v":0},{"$f":"T33","v":0},{"$f":"IF($U$35>0,U33/$U$35,0)","v":0},{"$f":"U33/U5","v":0}]
[null,null,null,null,null,null,null,null,null,null,null,null,null,null,null,"Tid per år för aktiviteter",null,null,null,{"$f":"M32*U$5","v":0},{"$f":"T34","v":0},{"$f":"IF($U$35>0,U34/$U$35,0)","v":0},{"$f":"U34/U5","v":0}]
[null,null,null,null,null,null,null,null,"9. Resultat",null,null,"Antal","Ändring i %",null,null,"Summa",null,null,null,{"$f":"SUM(T31:T34)","v":0},{"$f":"SUM(U31:U34)","v":0},{"$f":"SUM(V31:V34)","v":0},{"$f":"SUM(W31:W34)","v":0}]
[null,null,null,null,null,null,null,null,"Antal invånare enheten kan erbjuda  ",null,null,null,null,null,null,"* Ny tid [antal timmar] per vecka, beräknad på den ökning av antal listade som redovisas i fält 8. Jämför med fält 9."]
[null,null,null,null,null,null,null,null,"kontinuerligt patientansvar för",null,null,{"$f":"T45","v":0},{"$f":"U45","v":0}]
[null,null,null,null,null,null,null,null,null,null,null,null,null,null,null,null,null,null,null,null,"Andel av"]
[null,null,null,null,null,null,null,null,null,null,null,null,null,null,null,"Tid indirekta patientaktiviteter/direkta patientkontakter år",null,null,null,"Antal timmar","patienttid"]
[null,null,null,null,null,null,null,null,null,null,null,null,null,null,null,"Tid per år för indirekt och direkt patient-arbete/kontakter",null,null,null,{"$f":"U31+U32","v":0},{"$f":"IF((T40+T41)=0,0,T40/(T40+T41))","v":0}]
[null,null,null,null,null,null,null,null,null,null,null,null,null,null,null,"Tid per år för indirekt patientarbete",null,null,null,{"$f":"U32","v":0}]
[]
[null,null,null,null,null,null,null,null,null,null,null,null,null,null,null,{"$f":"\"Utifrån \"&ROUND(V15,1)&\" kontakter per invånare\"","v":"Utifrån 0 kontakter per invånare"},null,null,null,"Antal","Andel"]
[null,null,null,null,null,null,null,null,null,null,null,null,null,null,null,{"$f":"\"och \" &F9&\" antal invånare\"","v":"och 1000 antal invånare"},null,null,null,"Antal","Andel"]
[null,null,null,null,null,null,null,null,null,null,null,null,null,null,null,"Möjligt antal invånare som läkaren kan ha kont. patientansvar för",null,null,null,{"$f":"W26","v":0},{"$f":"IF(F9>0,T45/F9,0)","v":0}]

{"sheet":"Läkare","index":2,"n_rows":45,"n_cols":23,"rows_kept":45,"cut":false,"hidden":false,"merged":[]}
[]
[null,null,null,null,null,null,null,null,null,null,null,null,null,null,null,"Beräkningar till grund för resultat"]
[null,"Planeringsverktyg läkare "]
[null,null,null,null,null,null,null,null,null,null,null,null,null,null,null,"Veckoarbetstid standard heltid"]
[null,null,null,null,null,null,null,null,null,null,null,null,null,null,null,"Veckoarbetstid heltid",null,null,null,40]
[]
[null,null,null,null,null,null,null,null,null,null,null,null,null,null,null,null,null,null,null,null,null,"Kontakter","Pat.konakt"]
[null,"1. Antal invånare kopplade till läkaren",null,null,null,null,null,null,"6. Veckobaserad samverkan",null,null,null,"Antal timmar",null,null,"Tidsåtgång direkta patientkontakter (antalet besök per år multiplicerat med tiden per besök, fält 3 samt fält 4)",null,null,null,"Antal timmar","Andel","per listad","per vecka"]
[null,"Antalet invånare",null,null,null,0,null,null,"Intern konsultation och samverkan",null,null,null,0,null,null,"Planerade besök, vårdcentral",null,null,null,{"$f":"F17*G26","v":0},{"$f":"IF($T$15>0,T9/$T$15,0)","v":0},{"$f":"IF($F$9>0,$F$17/$F$9,0)","v":0},{"$f":"IF(G26>0,U9*$M$29/G26,0)","v":0}]
[null,null,null,null,null,null,null,null,"Extern konsultation och samverkan",null,null,null,0,null,null,"Planerade hembesök",null,null,null,0,0,{"$f":"IF($F$9>0,$F$18/$F$9,0)","v":0},0]
[null,"2. Produktiv tid",null,null,null,null,null,null,"Samverkan kommun",null,null,null,0,null,null,"Akuta besök, vårdcentral",null,null,null,0,0,{"$f":"IF($F$9>0,$F$19/$F$9,0)","v":0},0]
[null,"Tjänstgöringsgrad",null,null,null,0,null,null,"Övrigt",null,null,null,0,null,null,"Akuta hembesök",null,null,null,0,0,{"$f":"IF($F$9>0,$F$20/$F$9,0)","v":0},0]
[null,"Tillgängligt antal veckor per år",null,null,null,45,null,null,"Summa",null,null,null,{"$f":"SUM(M9:M12)","v":0},null,null,"Telefonärenden",null,null,null,0,0,{"$f":"IF($F$9>0,$F$21/$F$9,0)","v":0},0]
[null,"Veckoarbetstid justerad",null,null,null,{"$f":"(F12*T5)","v":0},null,null,null,null,null,null,null,null,null,"Digitala vårdmöten",null,null,null,0,0,{"$f":"IF($F$9>0,$F$22/$F$9,0)","v":0},0]
[null,null,null,null,null,null,null,null,"7. Veckobaserade aktiviteter",null,null,null,"Antal timmar",null,null,"Summa",null,null,null,{"$f":"SUM(T9:T14)","v":0},{"$f":"SUM(U9:U14)","v":0},{"$f":"SUM(V9:V14)","v":0},{"$f":"SUM(W9:W14)","v":0}]
[null,"3. Patientkontakter, totalt för läkaren per år:",null,null,null,"Antal",null,null,"Rast",null,null,null,0,null,null,"Förhållande mellan tid för indirekt och direkt pat.kontakt",null,null,null,{"$f":"M30*F13","v":0},{"$f":"IF((T15+T16)=0,0,T16/(T15+T16))","v":0}]
[null,"Planerade besök, vårdcentral",null,null,null,0,null,null,"Möte (kring arbetsplatsen)",null,null,null,0]
[null,"Planerade hembesök",null,null,null,0,null,null,"Handledning",null,null,null,0,null,null,"Tidsåtgång direkta patientkontakter, baserat på tillgänglig tid,",null,null,null,null,null,"Motsvarande","Motsvarande"]
[null,"Akuta besök, vårdcentral",null,null,null,0,null,null,"Sidouppdrag",null,null,null,0,null,null,"justerat för behovet av ökad tid för indirekt patientarbete (uppskattad tidsåtgång baserat på data i fält 1-7)",null,null,null,"Antal timmar","Justerat tid*","kontakter","listade"]
[null,"Akuta hembesök",null,null,null,0,null,null,"Professionell utveckling och fortbildning",null,null,null,0,null,null,{"$f":"B17","v":"Planerade besök, vårdcentral"},null,null,null,{"$f":"U9*$T$31","v":0},{"$f":"T20-U9*($T$27-T$16)","v":0},{"$f":"IF(G26>0,U20/G26,0)","v":0}]
[null,"Telefonärenden",null,null,null,0,null,null,"Forskning och enhetens utvecklingsarbete",null,null,null,0,null,null,"Planerade hembesök",null,null,null,0,0,0]
[null,"Digitala vårdmöten",null,null,null,0,null,null,"Övrigt",null,null,null,0,null,null,"Akuta besök, vårdcentral",null,null,null,0,0,0,"         "]
[null,"Summa",null,null,null,{"$f":"SUM(F17:F22)","v":0},null,null,"Summa",null,null,null,{"$f":"SUM(M16:M22)","v":0},null,null,"Akuta hembesök",null,null,null,0,0,0]
[null,null,null,null,null,null,null,null,null,null,null,null,null,null,null,"Telefonärenden",null,null,null,0,0,0]
[null,"4. Tidsåtgång direkta patientkontakter",null,null,null,"[tim: min]",null,null,null,null,null,null,null,null,null,"Digitala vårdmöten",null,null,null,0,0,0]
[null,"Planerade besök, vårdcentral",null,null,null,"00:00:00",{"$f":"IF( F26>TIME(24,0,0),TEXT(F26,\"[t]:mm:ss\")*24,0)","v":0},null,"Resultat",null,null,null,null,null,null,"Summa",null,null,null,{"$f":"SUM(T20:T25)","v":0},{"$f":"SUM(U20:U25)","v":0},{"$f":"SUM(V20:V25)","v":0},{"$f":"IF(V15>0,V26/V15,0)","v":0}]
[null,"Planerade hembesök",null,null,null,"00:00:00",0,null,null,null,null,null,null,null,null,"Hur mycket mer tid behövs för indirekt arbete?",null,null,null,{"$f":"(T31+T32)*U16","v":0}]
[null,"Akuta besök, vårdcentral",null,null,null,"00:00:00",0,null,"8. Summering läkarens tid per vecka",null,null,null,"Antal timmar",null,null,"* Tid [Antal timmar] justerad för det extra indirekta patientarbete fler patienter kräver"]
[null,"Akuta hembesök",null,null,null,"00:00:00",0,null,"Tid per vecka för direkta patientkontakter",null,null,null,{"$f":"F14-(M30+M31+M32)","v":0}]
[null,"Telefonärenden",null,null,null,"00:00:00",0,null,"Veckobaserat indirekt patientarbete",null,null,null,{"$f":"F34","v":0},null,null,"Summering av läkarens tid för aktiviteter år",null,null,null,"Antal timmar","Justerat tid","Andel","Ny tid *"]
[null,"Digitala vårdmöten",null,null,null,"00:00:00",0,null,"Veckobaserad samverkan",null,null,null,{"$f":"M13","v":0},null,null,"Tid per år för direkta patientkontakter",null,null,null,{"$f":"M29*F13","v":0},{"$f":"U26","v":0},{"$f":"IF($U$35>0,U31/$U$35,0)","v":0},{"$f":"U31/F$13","v":0}]
[null,null,null,null,null,null,null,null,"Veckobaserade aktiviteter",null,null,null,{"$f":"M23","v":0},null,null,"Tid per år för indirekta patientarbete",null,null,null,{"$f":"M30*F13","v":0},{"$f":"T27","v":0},{"$f":"IF($U$35>0,U32/$U$35,0)","v":0},{"$f":"U32/F$13","v":0}]
[null,"5. Veckobaserat indirekt patientarbete",null,null,null,"Antal timmar",null,null,"Summa",null,null,null,{"$f":"SUM(M29:M32)","v":0},null,null,"Tid per år för samverkan",null,null,null,{"$f":"M31*F13","v":0},{"$f":"T33","v":0},{"$f":"IF($U$35>0,U33/$U$35,0)","v":0},{"$f":"U33/F$13","v":0}]
[null,"Indirekt patientarbete ",null,null,null,0,null,null,null,null,null,null,null,null,null,"Tid per år för aktiviteter",null,null,null,{"$f":"M32*F13","v":0},{"$f":"T34","v":0},{"$f":"IF($U$35>0,U34/$U$35,0)","v":0},{"$f":"U34/F$13","v":0}]
[null,null,null,null,null,null,null,null,"9. Resultat",null,null,"Antal","Ändring i % ",null,null,"Summa",null,null,null,{"$f":"SUM(T31:T34)","v":0},{"$f":"SUM(U31:U34)","v":0},{"$f":"SUM(V31:V34)","v":0},{"$f":"SUM(W31:W34)","v":0}]
[null,null,null,null,null,null,null,null,"Antal invånare läkaren kan ha ",null,null,null,null,null,null,"* Ny tid [Antal timmar] per vecka, beräknad på den ökning av antal listade som redovisas i fält 8. Jämför med fält 9."]
[null,null,null,null,null,null,null,null,"kontinuerligt patientansvar för",null,null,{"$f":"T45","v":0},{"$f":"U45","v":0}]
[null,null,null,null,null,null,null,null,null,null,null,null,null,null,null,null,null,null,null,null,"Andel av"]
[null,null,null,null,null,null,null,null,null,null,null,null,null,null,null,"Tid indirekta patientaktiviteter/direkta patientkontakter år",null,null,null,"Antal timmar","patienttid"]
[null,null,null,null,null,null,null,null,null,null,null,null,null,null,null,"Tid per år för indirekt och direkt patient-arbete/kontakter",null,null,null,{"$f":"U31+U32","v":0},{"$f":"IF((T40+T41)=0,0,T40/(T40+T41))","v":0}]
[null,null,null,null,null,null,null,null,null,null,null,null,null,null,null,"Tid per år för indirekt patientarbete",null,null,null,{"$f":"U32","v":0}]
[]
[null,null,null,null,null,null,null,null,null,null,null,null,null,null,null,{"$f":"\"Utifrån \"&ROUND(V15,1)&\" kontakter per invånare\"","v":"Utifrån 0 kontakter per invånare"},null,null,null,"Antal","Andel"]
[null,null,null,null,null,null,null,null,null,null,null,null,null,null,null,{"$f":"\"och \" &F9&\" antal invånare\"","v":"och 0 antal invånare"},null,null,null,"Antal","Andel"]
[null,null,null,null,null,null,null,null,null,null,null,null,null,null,null,"Möjligt antal invånare som läkaren kan ha kont. patientansvar för",null,null,null,{"$f":"W26","v":0},{"$f":"IF(F9>0,T45/F9,0)","v":0}]

{"sheet":"Förklaringar för enhetsdel","index":3,"n_rows":34,"n_cols":12,"rows_kept":34,"cut":false,"hidden":false,"merged":[]}
[]
[null,"Förklaring för planeringsverktyg enhet"]
[null,"Den här kartläggningen avser de samlade läkarresurserna på enheten."]
[]
[null,"1. Antal listade på enheten",null,null,null,null,null,"6. Veckobaserad samverkan ",null,null,"Antal timmar","Total antal timmar per vecka enheten lägger på samverkansaktiviteter"]
[null,"Antal invånare",null,null,null,"Totalt antal invånare som är kopplade till enheten, både aktivia och passiva ",null,"Intern konsultation och samverkan",null,null,null,"Teamarbete och samverkan med arbetskamrater"]
[null,null,null,null,null,null,null,"Extern konsulatation och samverkan",null,null,null,"Teamarbete och samverkan med samarbetspartner utanför enheten, exempelvis sjukhus"]
[null,"2. Produktiv tid",null,null,null,null,null,"Samverkan kommun",null,null,null,"Planerad och oplanerad tid för samverkan med kommunens verksamheter"]
[null,"Tjänstgöringsgrad",null,null,null,"Utgångsläget är en heltidstjänst på 100% och motsvarar 40 timmar/vecka",null,"Övrigt",null,null,null,"Annan veckobaserad samverkan, som inte passar under ovanstående rubriker"]
[null,"Veckoarbetstid justerad",null,null,null,"Visar utfall i timmar av angivien tjänstegöringsgrad i procent enligt ovan",null,"Summa"]
[]
[null,"3. Patientkontakter totalt för enheten, per år",null,null,"Antal","Olika typer av patientkontakter enheten har per år.",null,"7. Veckobaserad aktiviteter",null,null,"Antal timmar","Beskriver tiden som läggs på aktiviteter som inte har en direkt koppling till patientmötet"]
[null,"Planerade besök, vårdcentral",null,null,null,"Totalt antal inplanerade besök på vårdcentralen per år",null,"Rast",null,null,null,"Icke utstämlad tid, exempelvis fikapaus"]
[null,"Planerade hembesök",null,null,null,"Totalt antal inplanerade hembesök per år",null,"Möte (kring arbetsplatsen)",null,null,null,"Antal timmar enheten avsätter i snitt per vecka, exempelvis enhetsmöten och arbetsplatsträffar"]
[null,"Akuta besök, vårdcentral",null,null,null,"Totalt antalt akuta besök på vårdcentral per år",null,"Handledning",null,null,null,"Avsatt tid för att handleda eller få handledning"]
[null,"Akuta hembesök",null,null,null,"Totalt antal akuta hembesök per år",null,"Sidouppdrag",null,null,null,"Det enheten definerar mer omfattande uppdrag med avsätts tid för, exempelvis BHV eller medicinsk programgrupp"]
[null,"Telefonärenden",null,null,null,"Totalt antal  telefonärenden per år",null,"Professionell utveckling och fortbildning",null,null,null,"Enhetens utbildning, fortbildning och utvecklingsaktiviteter"]
[null,"Digitala vårdmöten",null,null,null,"Totalt antal videomöten med patient per år",null,"Forskning och enhetens utvecklingsarbete",null,null,null,"Enhetens forskningstid samt deltagande i utvecklingsarbetet kopplat till enheten"]
[null,"Summa",null,null,null,null,null,"Övrigt",null,null,null,"Andra aktiviteter som inte finns med i ovanstående rubriker"]
[null,null,null,null,null,null,null,"Summa"]
[null,"4. Tidsåtgång direkta patientkontakter ",null,null,"Antal timmar","Avsatt tid för respektive patientkontakter."]
[null,"Planerade besök, vårdcentral",null,null,null,"Uppskattad tidsåtgång för planerade besök på vårdcentral"]
[null,"Planerade hembesök",null,null,null,"Uppskattad tidsåtgång för planerade hembesök i invånarens egna hem eller på särskiltboende",null,"Resultat"]
[null,"Akuta besök, vårdcentral",null,null,null,"Uppskattad tidsåtgång för oplanerade besök på vårdcentral"]
[null,"Akuta hembesök",null,null,null,"Uppskattad tidsåtgång för oplanerade hembesök i invånarens egna hem eller på särskiltboende",null,"8. Summering enhetens tid per vecka"]
[null,"Telefonärenden",null,null,null,"Uppskattad tidsåtgång för telefonäranden",null,"Tid per vecka för direkta patientkontakter"]
[null,"Digitala vårdmöten",null,null,null,"Uppskattad tidsåtgång för videomöten med patient",null,"Veckobaserat indirekt patientarbete"]
[null,null,null,null,null,null,null,"Tid per vecka för direkta patientkontakter"]
[null,"5. Veckobaserat indirekt patientarbete",null,null,"Antal timmar",null,null,"Veckobaserad samverkan"]
[null,"Indirekt patientarbete",null,null,null,null,null,"Veckobaserade aktiviteter"]
[null,null,null,null,null,null,null,"Summa"]
[]
[null,null,null,null,null,null,null,"9. Resultat "]
[null,null,null,null,null,null,null,"Antal invånare enheten kan erbjuda \nkonternuerligt patientanasvar för  "]

{"sheet":"Förklaringar för läkardel","index":4,"n_rows":34,"n_cols":12,"rows_kept":34,"cut":false,"hidden":false,"merged":[]}
[]
[null,"Förklaring för planeringsverktyg läkardel"]
[null,"Den här kartläggningen avser de samlade läkarresurserna på enheten."]
[]
[null,"1. Antal invånare kopplat till läkaren",null,null,null,null,null,"6. Veckobaserad samverkan ",null,null,"(tim:min)","Total antal timmar per vecka läkaren lägger på samverkansaktiviteter"]
[null,"Antal invånare",null,null,null,"Totalt antal invånare som är kopplade till läkaren, både aktivia och passiva ",null,"Intern konsultation och samverkan",null,null,null,"Teamarbete och samverkan med arbetskamrater"]
[null,null,null,null,null,null,null,"Extern konsulatation och samverkan",null,null,null,"Teamarbete och samverkan med samarbetspartner utanför enheten, exempelvis sjukhus"]
[null,"2. Produktiv tid",null,null,null,null,null,"Samverkan kommun",null,null,null,"Planerad och oplanerad tid för samverkan med kommunens verksamheter"]
[null,"Tjänstgöringsgrad",null,null,null,"Utgångsläget är en heltidstjänst på 100% och motsvarar 40 timmar/vecka",null,"Övrigt",null,null,null,"Annan veckobaserad samverkan, som inte passar under ovanstående rubriker"]
[null,"Tillgängligt antal veckor per år",null,null,null,null,null,"Summa"]
[null,"Veckoarbetstid justerad",null,null,null,"Visar utfall i timmar av angivien tjänstegöringsgrad i procent enligt ovan"]
[null,null,null,null,null,null,null,"7. Veckobaserad aktiviteter",null,null,"(tim:min)","Beskriver tiden som läggs på aktiviteter som inte har en direkt koppling till patientmötet"]
[null,"3. Patientkontakter totalt för läkaren, per år",null,null,"Antal","Olika typer av patientkontakter läkaren har per år.",null,"Rast",null,null,null,"Icke utstämlad tid, exempelvis fikapaus"]
[null,"Planerade besök, vårdcentral",null,null,null,"Totalt antal inplanerade besök på vårdcentralen per år",null,"Möte (kring arbetsplatsen)",null,null,null,"Antal timmar läkaren avsätter i snitt per vecka, exempelvis enhetsmöten och arbetsplatsträffar"]
[null,"Planerade hembesök",null,null,null,"Totalt antal inplanerade hembesök per år",null,"Handledning",null,null,null,"Avsatt tid för att handleda eller få handledning"]
[null,"Akuta besök, vårdcentral",null,null,null,"Totalt antalt akuta besök på vårdcentral per år",null,"Sidouppdrag",null,null,null,"Det som läkaren definerar mer omfattande uppdrag som det avsätts mer tid för, exempelvis BHV "]
[null,"Akuta hembesök",null,null,null,"Totalt antal akuta hembesök per år",null,"Professionell utveckling och fortbildning",null,null,null,"Läkarens individuella utbildning, fortbildning och utvecklingsaktiviteter"]
[null,"Telefonärenden",null,null,null,"Totalt antal  telefonärenden per år",null,"Forskning och enhetens utvecklingsarbete",null,null,null,"Läkarens eventuella forskningstid samt deltagande i utvecklingsarbetet kopplat till enheten"]
[null,"Digitala vårdmöten",null,null,null,"Totalt antal videomöten med patient per år",null,"Övrigt",null,null,null,"Andra aktiviteter som inte finns med i ovanstående rubriker"]
[null,"Summa",null,null,null,null,null,"Summa"]
[]
[null,"4. Tidsåtgång direkta patientkontakter ",null,null,"Antal timmar","Avsatt tid för respektive patientkontakter."]
[null,"Planerade besök, vårdcentral",null,null,null,"Uppskattad tidsåtgång för planerade besök på vårdcentral",null,"Resultat"]
[null,"Planerade hembesök",null,null,null,"Uppskattad tidsåtgång för planerade hembesök i invånarens egna hem eller på särskiltboende"]
[null,"Akuta besök, vårdcentral",null,null,null,"Uppskattad tidsåtgång för oplanerade besök på vårdcentral",null,"8. Summering läkarens tid per vecka"]
[null,"Akuta hembesök",null,null,null,"Uppskattad tidsåtgång för oplanerade hembesök i invånarens egna hem eller på särskiltboende",null,"Tid per vecka för direkta patientkontakter"]
[null,"Telefonärenden",null,null,null,"Uppskattad tidsåtgång för telefonäranden",null,"Veckobaserat indirekt patientarbete"]
[null,"Digitala vårdmöten",null,null,null,"Uppskattad tidsåtgång för videomöten med patient",null,"Tid per vecka för direkta patientkontakter"]
[null,null,null,null,null,null,null,"Veckobaserad samverkan"]
[null,"5. Veckobaserat indirekt patientarbete",null,null,"(tim:min)",null,null,"Veckobaserade aktiviteter"]
[null,"Indirekt patientarbete",null,null,null,null,null,"Summa"]
[]
[null,null,null,null,null,null,null,"9. Resultat "]
[null,null,null,null,null,null,null,"Antal invånare läkaren kan erbjuda \nkonternuerligt patientanasvar för  "]